bitfinex/quotes_ETHUSD_20240819
["timestamp","ask_amount","ask_price","bid_price","bid_amount"]
[1724074805472,3.85342,2595.1,2594.6,3.0]
[1724074805793,3.85365,2595.0,2594.5,5.2597]
[1724074806094,3.85365,2595.0,2594.6,3.0]
[1724074806357,2.4091,2595.9,2594.6,3.0]
[1724074806565,2.4091,2595.9,2594.5,2.48567]
[1724074806566,3.85271,2595.6,2594.5,2.48567]
[1724074806712,3.85285,2595.5,2594.5,2.48567]
[1724074806906,7.70548,2595.6,2594.5,6.33995]
[1724074807111,7.70552,2595.6,2594.6,3.933995]
[1724074807357,7.70547,2595.6,2594.6,3.933995]
[1724074807559,4.478578,2595.8,2594.7,2.3251]
[1724074807762,3.85245,2595.8,2594.8,0.07706134]
[1724074807908,3.85245,2595.8,2594.8,5.3251]
[1724074808109,7.70494,2595.8,2594.9,1.02834458]
[1724074808358,3.85245,2595.8,2594.9,1.02834458]
[1724074808950,3.85214,2596.0,2595.0,2.4391]
[1724074809127,3.85214,2596.0,2595.1,0.34674446]
[1724074809512,3.85214,2596.0,2595.1,3.34674446]
[1724074809513,7.70433,2596.0,2595.1,3.34674446]
[1724074809708,3.85214,2596.0,2595.1,3.34674446]
[1724074809953,3.85185,2596.2,2595.2,2.3149]
[1724074810126,3.85194,2596.1,2595.2,5.64957445]
[1724074810534,3.85208,2596.0,2595.2,5.64957445]
[1724074810735,3.85208,2596.0,2595.3,0.59963189]
[1724074811016,3.85208,2596.0,2595.4,2.4255]
[1724074811267,3.85208,2596.0,2595.4,5.4255]
[1724074811456,3.85225,2595.9,2595.4,5.4255]
[1724074811634,3.85225,2595.9,2595.4,2.4255]
[1724074812016,3.85239,2595.8,2595.4,2.4255]
[1724074813445,0.385208,2595.9,2595.2,3.0]
[1724074813648,3.8526,2595.7,2595.2,3.0]
[1724074813851,2.4647,2596.2,2594.8,2.2689]
[1724074814071,3.8529,2595.5,2594.8,2.2689]
[1724074814228,3.85321,2595.3,2594.8,2.2689]
[1724074814435,3.85355,2595.1,2594.4,2.2689]
[1724074814767,3.85355,2595.1,2594.1,2.2689]
[1724074814768,3.85426,2594.6,2594.1,2.2689]
[1724074814948,0.385321,2595.3,2594.3,3.85458]
[1724074814949,3.85321,2595.3,2594.3,3.85458]
[1724074815147,3.85321,2595.3,2594.2,2.2689]
[1724074815453,2.4802,2595.5,2594.2,2.89649]
[1724074815633,2.4802,2595.5,2594.2,2.2689]
[1724074815634,3.85437,2594.5,2594.2,2.2689]
[1724074816035,3.8541,2594.7,2594.2,2.2689]
[1724074816282,3.85426,2594.6,2594.2,2.2689]
[1724074816902,3.85384,2594.9,2594.2,2.49579]
[1724074817187,2.4026,2595.3,2594.2,2.49579]
[1724074817188,3.85361,2595.0,2594.2,2.49579]
[1724074817348,3.85273,2595.6,2594.2,2.49579]
[1724074817349,3.85303,2595.4,2594.3,4.104159]
[1724074817564,3.85303,2595.4,2594.5,2.3125]
[1724074818195,3.85329,2595.2,2594.5,2.3125]
[1724074818401,2.2881,2595.6,2594.5,2.3125]
[1724074818703,0.22881,2595.5,2594.5,2.3125]
[1724074818847,3.85306,2595.4,2594.5,2.3125]
[1724074819051,3.85299,2595.4,2594.5,2.3125]
[1724074819252,3.85283,2595.5,2594.5,2.3125]
[1724074819485,3.85283,2595.5,2594.5,6.16677]
[1724074819802,3.85272,2595.6,2594.8,2.4339]
[1724074820011,3.85295,2595.5,2594.8,2.4339]
[1724074820152,3.85295,2595.5,2594.6,3.0]
[1724074820153,0.385295,2595.4,2594.6,3.0]
[1724074820353,3.85378,2594.9,2594.5,2.4076]
[1724074820712,3.85337,2595.2,2594.5,2.4076]
[1724074820857,3.85357,2595.0,2594.5,2.9733179]
[1724074821052,3.85357,2595.0,2594.6,3.0]
[1724074821254,3.85341,2595.1,2594.6,3.0]
[1724074821491,3.85341,2595.1,2594.5,2.4076]
[1724074821867,3.85358,2595.0,2594.5,2.4076]
[1724074823005,3.85331,2595.2,2594.5,2.9733179]
[1724074823168,3.85331,2595.2,2594.6,3.0]
[1724074823703,3.85358,2595.0,2594.6,3.0]
[1724074824599,3.85342,2595.1,2594.6,3.0]
[1724074824956,3.85357,2595.0,2594.6,3.0]
[1724074825359,3.85331,2595.2,2594.7,0.59733179]
[1724074825767,6.23478,2595.5,2594.6,3.0]
[1724074825969,3.85371,2594.9,2594.6,3.0]
[1724074826183,2.3819,2595.5,2594.5,2.4076]
[1724074826184,3.85345,2595.1,2594.5,2.4076]
[1724074826507,3.85357,2595.0,2594.6,0.24076]
[1724074826702,3.85357,2595.0,2594.6,3.24076]
[1724074826904,3.85357,2595.0,2594.6,3.0]
[1724074827057,3.85357,2595.0,2594.5,2.4076]
[1724074827255,3.85345,2595.1,2594.5,2.4076]
[1724074827460,3.85334,2595.2,2594.5,2.4076]
[1724074827662,3.85334,2595.2,2594.6,0.54076]
[1724074827856,3.85344,2595.1,2594.6,3.0]
[1724074828062,3.8544,2594.5,2594.2,2.4196]
[1724074828287,9.20126,2595.2,2594.0,7.28]
[1724074828288,3.8549,2594.1,2594.0,7.28]
[1724074828495,6.30167,2594.5,2593.5,9.552]
[1724074828703,3.85475,2594.2,2593.5,10.51389454]
[1724074829009,0.630167,2594.4,2593.5,10.51389454]
[1724074829010,3.85508,2594.0,2593.5,10.51389454]
[1724074829207,3.85546,2593.8,2593.5,9.552]
[1724074829389,3.85546,2593.8,2593.5,2.272]
[1724074829875,3.85545,2593.8,2593.5,2.272]
[1724074831386,7.71091,2593.8,2593.5,2.272]
[1724074831709,3.85545,2593.8,2593.3,3.0]
[1724074832020,3.85545,2593.8,2593.2,5.33895151]
[1724074832165,3.85545,2593.8,2593.2,5.272]
[1724074832166,3.8557,2593.6,2593.2,5.272]
[1724074832790,4.33722063,2594.4,2593.2,5.272]
[1724074832791,3.85603,2593.4,2593.2,3.0]
[1724074833007,3.85603,2593.4,2592.9,2.3581]
[1724074833208,3.85623,2593.2,2592.9,2.3581]
[1724074833379,3.85569,2593.6,2592.9,2.60060061]
[1724074833818,3.85594,2593.4,2592.9,2.60060061]
[1724074834022,3.85635,2593.2,2592.7,0.06690612]
[1724074834231,3.85543,2593.8,2592.6,9.6381]
[1724074834232,3.85537,2593.8,2592.6,9.6381]
[1724074834476,3.85698,2592.7,2592.6,7.28]
[1724074834716,3.85683,2592.8,2592.3,2.3581]
[1724074834931,3.85658,2593.0,2592.4,0.23581]
[1724074835294,3.85668,2592.9,2592.4,0.23581]
[1724074835777,3.85658,2593.0,2592.4,0.23581]
[1724074835979,3.85724,2592.6,2592.1,7.34692331]
[1724074836286,3.85689,2592.8,2592.1,7.34692331]
[1724074836287,3.85689,2592.8,2592.2,2.3696]
[1724074836487,3.85709,2592.7,2592.1,7.34692331]
[1724074836685,3.85673,2592.9,2592.1,7.34692331]
[1724074836686,3.85691,2592.8,2592.1,7.34692331]
[1724074836902,3.85691,2592.8,2592.1,9.32061564]
[1724074837070,3.85701,2592.7,2592.1,9.32061564]
[1724074837275,3.85716,2592.6,2592.1,9.25369233]
[1724074837500,3.85701,2592.7,2592.1,9.25369233]
[1724074837674,3.85701,2592.7,2592.2,0.92536923]
[1724074837875,3.85722,2592.6,2592.2,0.92536923]
[1724074838118,3.85728,2592.5,2592.2,0.92536923]
[1724074838288,3.85746,2592.4,2592.1,7.28]
[1724074838492,3.858,2592.1,2591.7,2.4952599]
[1724074838706,3.858,2592.1,2591.7,0.1256599]
[1724074838890,3.85749,2592.4,2591.7,0.1256599]
[1724074838891,3.85826,2591.9,2591.7,0.1256599]
[1724074839094,3.85832,2591.8,2591.7,0.1256599]
[1724074839297,7.71664,2591.8,2591.7,0.1256599]
[1724074839506,3.85832,2591.8,2591.7,0.1256599]
[1724074839714,2.264,2592.2,2591.7,0.1256599]
[1724074839715,3.85795,2592.1,2591.7,0.1256599]
[1724074840021,3.85832,2591.8,2591.7,0.1256599]
[1724074841212,7.71664,2591.8,2591.7,0.1256599]
[1724074841411,11.57496,2591.8,2591.7,0.1256599]
[1724074841576,7.71664,2591.8,2591.7,0.1256599]
[1724074842281,13.83896,2591.8,2591.7,0.1256599]
[1724074842518,11.364536,2591.8,2591.7,0.1256599]
[1724074842732,15.222856,2591.8,2591.7,0.1256599]
[1724074843095,19.081176,2591.8,2591.7,0.1256599]
[1724074843294,19.081176,2591.8,2590.4,2.3696]
[1724074843295,3.86004,2590.7,2590.4,2.3696]
[1724074843495,7.7195,2590.9,2590.4,2.3696]
[1724074843918,3.85942,2591.1,2590.4,2.3696]
[1724074844231,3.85885,2591.5,2590.4,6.22987]
[1724074844435,3.85893,2591.4,2590.5,0.622987]
[1724074844731,3.85894,2591.4,2590.5,0.622987]
[1724074844957,3.85907,2591.3,2590.5,3.622987]
[1724074845089,3.85932,2591.2,2590.5,3.622987]
[1724074846036,3.85931,2591.2,2590.5,3.622987]
[1724074846797,4.244894,2591.4,2590.5,3.622987]
[1724074846798,3.859,2591.4,2590.5,3.622987]
[1724074847034,3.85838,2591.8,2590.6,2.9311587]
[1724074847245,3.85838,2591.8,2590.9,2.3319]
[1724074847449,3.85838,2591.8,2591.0,0.619162]
[1724074847744,3.85838,2591.8,2591.0,3.619162]
[1724074847894,2.5507,2592.2,2591.2,2.3319]
[1724074847895,3.85782,2592.2,2591.2,2.3319]
[1724074848095,3.85782,2592.2,2591.3,0.07716281]
[1724074848324,7.71505,2592.4,2591.4,2.2691]
[1724074848493,3.8575,2592.4,2591.4,5.8191]
[1724074848696,3.85745,2592.4,2591.5,1.03049213]
[1724074849006,3.85745,2592.4,2591.6,35.0]
[1724074849335,3.85722,2592.6,2591.7,2.2691]
[1724074849336,3.85737,2592.5,2591.7,2.2691]
[1724074849650,3.85745,2592.4,2591.8,3.72691]
[1724074849796,7.71496,2592.4,2591.7,5.2691]
[1724074849989,3.85745,2592.4,2591.8,3.0]
[1724074850195,3.85767,2592.3,2591.8,6.80945125]
[1724074850405,3.85745,2592.4,2591.8,6.80945125]
[1724074850591,7.71444,2592.6,2591.8,6.80945125]
[1724074850825,3.85553,2593.7,2591.8,6.80945125]
[1724074850826,3.85687,2592.8,2591.9,2.59087892]
[1724074851024,3.85687,2592.8,2592.0,3.0]
[1724074851225,3.85687,2592.8,2592.1,0.07714356]
[1724074851463,3.85687,2592.8,2592.2,0.07714274]
[1724074851667,3.85657,2593.0,2592.0,3.0]
[1724074851668,3.85725,2592.6,2592.0,3.0]
[1724074852163,4.628604,2592.6,2592.0,3.0]
[1724074852370,4.628604,2592.6,2591.9,3.0]
[1724074852371,7.71442,2592.6,2591.9,3.0]
[1724074852877,3.85719,2592.6,2591.9,3.0]
[1724074853181,3.85699,2592.7,2592.0,0.68094513]
[1724074853592,3.85716,2592.6,2592.0,0.68094513]
[1724074853753,3.85716,2592.6,2591.9,3.0]
[1724074854085,3.85668,2592.9,2591.9,3.0]
[1724074854285,3.85658,2593.0,2592.0,2.43844039]
[1724074854488,2.4172,2593.3,2592.0,3.42806712]
[1724074854647,3.8573,2592.5,2592.1,10.28]
[1724074854981,3.85713,2592.6,2592.1,11.95080671]
[1724074855151,3.85729,2592.5,2592.1,11.95080671]
[1724074855334,3.85704,2592.7,2592.1,11.95080671]
[1724074855541,4.09801,2593.2,2592.1,11.95080671]
[1724074855542,3.85643,2593.1,2592.1,11.95080671]
[1724074855750,3.85643,2593.1,2592.1,10.28]
[1724074855751,3.85736,2592.5,2592.1,10.28]
[1724074856083,3.85729,2592.5,2592.1,10.28]
[1724074856278,7.71467,2592.5,2592.1,10.28]
[1724074856499,3.85726,2592.6,2592.1,10.28]
[1724074856702,3.85736,2592.5,2592.1,10.28]
[1724074856855,3.85726,2592.6,2592.1,10.28]
[1724074856856,3.85743,2592.4,2592.1,10.28]
[1724074857303,7.71544,2592.2,2592.1,7.28]
[1724074857622,3.85778,2592.2,2591.6,2.31]
[1724074857912,3.8575,2592.4,2591.6,2.541]
[1724074858074,3.85773,2592.2,2591.6,2.541]
[1724074858415,3.85788,2592.1,2591.6,2.541]
[1724074858621,3.85812,2592.0,2591.6,2.31]
[1724074858778,3.85819,2591.9,2591.6,2.31]
[1724074859192,3.85819,2591.9,2591.3,9.5628]
[1724074859521,3.85835,2591.8,2591.3,10.51908]
[1724074859722,2.2897,2592.6,2591.3,10.51908]
[1724074859723,3.85796,2592.1,2591.3,10.51908]
[1724074859875,3.85796,2592.1,2591.4,3.0]
[1724074860220,3.85766,2592.3,2591.5,1.351908]
[1724074860420,7.71536,2592.3,2591.5,1.351908]
[1724074860619,13.71798,2592.8,2591.5,1.351908]
[1724074860620,9.8611,2592.8,2591.5,1.351908]
[1724074860924,3.85731,2592.5,2591.6,2.2828]
[1724074861122,3.85805,2592.0,2591.6,5.2828]
[1724074861421,3.85805,2592.0,2591.4,3.0]
[1724074861729,3.85805,2592.0,2591.4,4.26822]
[1724074861934,3.85777,2592.2,2591.4,4.26822]
[1724074862220,3.85767,2592.3,2591.4,4.26822]
[1724074862428,3.85767,2592.3,2591.5,1.540722]
[1724074862590,3.85691,2592.8,2591.7,3.85837]
[1724074862791,3.85714,2592.6,2591.8,5.911547]
[1724074862991,7.71328,2593.0,2591.9,3.85816]
[1724074863328,3.85668,2592.9,2592.1,2.4691]
[1724074863534,3.8571,2592.7,2592.1,2.4691]
[1724074863823,0.651521,2593.1,2592.1,2.4691]
[1724074863824,3.85681,2592.9,2592.1,2.4691]
[1724074863975,0.651521,2593.1,2592.2,0.64460707]
[1724074863976,3.8564,2593.1,2592.2,0.64460707]
[1724074864175,3.8564,2593.1,2592.2,3.64460707]
[1724074864375,3.85655,2593.0,2592.3,0.99715671]
[1724074864616,7.71318,2593.0,2592.3,0.99715671]
[1724074864932,3.85647,2593.1,2592.3,0.99715671]
[1724074865141,3.85633,2593.2,2592.4,0.46417638]
[1724074865418,3.85664,2593.0,2592.2,3.0]
[1724074865716,3.85664,2593.0,2592.1,2.4691]
[1724074866031,3.85664,2593.0,2592.2,0.24691]
[1724074866177,3.85629,2593.2,2592.2,3.24691]
[1724074866379,3.85601,2593.4,2592.4,3.85742]
[1724074866625,3.85601,2593.4,2592.5,3.3934551]
[1724074866919,9.86502055,2593.9,2592.5,3.0]
[1724074866920,2.3015,2593.3,2592.5,3.0]
[1724074867215,3.85663,2593.0,2592.1,3.0]
[1724074867386,3.85663,2593.0,2592.1,0.23944]
[1724074867591,3.85663,2593.0,2592.1,3.23944]
[1724074868191,7.71326,2593.0,2592.1,3.23944]
[1724074868382,7.71326,2593.0,2592.2,0.949181]
[1724074868383,3.85663,2593.0,2592.2,0.949181]
[1724074868579,3.85598,2593.4,2592.3,2.47883458]
[1724074868580,3.85604,2593.4,2592.3,2.47883458]
[1724074868901,3.85605,2593.4,2592.5,2.4017]
[1724074869074,3.85605,2593.4,2592.6,0.55]
[1724074869481,3.85572,2593.6,2592.6,3.55]
[1724074869778,3.85572,2593.6,2592.7,1.280894]
[1724074869984,7.71088,2593.8,2592.8,2.2721]
[1724074870310,3.8552,2593.9,2592.9,3.85665]
[1724074870513,3.85534,2593.8,2592.9,0.9052994]
[1724074870822,7.71031,2594.0,2593.1,2.3503]
[1724074871120,3.85513,2594.0,2593.1,2.3503]
[1724074871692,3.85525,2593.9,2593.1,2.3503]
[1724074871897,2.4645,2594.0,2593.1,2.3503]
[1724074872088,9.20211,2594.7,2593.1,2.3503]
[1724074872089,4.240793,2593.9,2593.1,2.3503]
[1724074872288,3.85578,2593.6,2593.1,2.3503]
[1724074872491,3.85576,2593.6,2593.1,2.3503]
[1724074872690,3.85571,2593.6,2593.1,2.3503]
[1724074872996,3.85632,2593.2,2592.8,2.4314]
[1724074873628,3.85639,2593.1,2592.3,2.4314]
[1724074873932,3.85602,2593.4,2592.3,3.545164]
[1724074874219,3.85624,2593.2,2592.4,1.4682804]
[1724074874420,3.85624,2593.2,2592.4,4.4682804]
[1724074874792,3.85601,2593.4,2592.4,4.4682804]
[1724074875120,0.385571,2593.6,2592.4,4.4682804]
[1724074875324,3.85656,2593.0,2592.5,1.07571504]
[1724074875622,3.85631,2593.2,2592.5,1.07571504]
[1724074875623,3.85631,2593.2,2592.5,3.0]
[1724074875825,3.85599,2593.4,2592.3,9.28896]
[1724074876124,0.385571,2593.6,2592.5,6.22562]
[1724074876125,3.85579,2593.6,2592.5,6.22562]
[1724074876279,3.8558,2593.5,2592.6,3.55]
[1724074876480,3.85597,2593.4,2592.7,1.705562]
[1724074876832,3.85609,2593.3,2592.7,1.705562]
[1724074877200,3.85609,2593.3,2592.6,3.0]
[1724074877632,0.4858713,2593.5,2592.6,3.0]
[1724074877798,2.3144,2594.1,2592.7,3.0098]
[1724074878007,3.85515,2594.0,2592.9,2.4598]
[1724074878333,3.85538,2593.8,2592.9,2.4598]
[1724074878795,3.85619,2593.3,2592.9,2.4598]
[1724074879000,3.85624,2593.2,2592.6,3.0]
[1724074879203,3.85639,2593.1,2592.6,3.0]
[1724074879820,3.85653,2593.1,2592.6,3.0]
[1724074880019,3.85661,2593.0,2592.6,3.0]
[1724074880188,3.85668,2592.9,2592.5,9.7398]
[1724074880531,4.242128,2593.1,2592.5,9.7398]
[1724074880734,3.85648,2593.1,2592.5,9.7398]
[1724074880939,3.85648,2593.1,2592.5,7.28]
[1724074881292,3.85624,2593.2,2592.6,2.4598]
[1724074881625,3.85624,2593.2,2592.6,5.4598]
[1724074881795,3.85598,2593.4,2592.6,6.43378]
[1724074882275,3.85598,2593.4,2592.6,5.4598]
[1724074882276,3.85624,2593.2,2592.6,5.4598]
[1724074882848,7.71256,2593.2,2592.6,5.4598]
[1724074883046,3.85624,2593.2,2592.6,5.4598]
[1724074883877,3.85605,2593.4,2592.6,3.0]
[1724074883878,3.85663,2593.0,2592.6,3.0]
[1724074884173,3.85639,2593.1,2592.6,3.0]
[1724074884398,3.85666,2593.0,2592.6,3.0]
[1724074884683,3.85683,2592.8,2592.5,7.28]
[1724074884988,3.85764,2592.3,2592.0,7.28]
[1724074885279,3.85739,2592.5,2591.6,12.39]
[1724074885280,3.85737,2592.5,2591.6,22.143]
[1724074885486,3.85765,2592.3,2591.6,22.143]
[1724074885870,3.85775,2592.2,2591.6,22.143]
[1724074886192,3.85765,2592.3,2591.6,22.143]
[1724074886372,3.85765,2592.3,2591.7,3.0]
[1724074886532,3.8578,2592.2,2591.6,22.143]
[1724074886741,3.85789,2592.1,2591.6,22.143]
[1724074887235,3.85799,2592.1,2591.6,2.473]
[1724074887440,4.67197889,2592.1,2591.6,2.473]
[1724074887666,7.71621,2592.0,2591.3,9.7639]
[1724074887869,3.85821,2591.9,2591.3,9.7639]
[1724074888252,3.85745,2592.4,2591.3,9.7639]
[1724074888253,7.71567,2592.2,2591.3,9.7639]
[1724074888464,3.85759,2592.3,2591.3,9.7639]
[1724074888648,3.8575,2592.4,2591.4,0.97639]
[1724074888850,7.71501,2592.4,2591.4,0.97639]
[1724074889129,3.85761,2592.3,2591.4,3.97639]
[1724074889281,4.629001,2592.4,2591.5,1.759927]
[1724074889486,3.85758,2592.3,2591.5,4.759927]
[1724074889947,7.71502,2592.4,2591.5,4.759927]
[1724074890289,4.629002,2592.4,2591.5,4.759927]
[1724074890440,3.85714,2592.6,2591.5,3.0]
[1724074890642,3.85782,2592.2,2591.5,2.2833]
[1724074890885,3.85811,2592.0,2591.5,2.2833]
[1724074891493,6.25782,2592.5,2591.5,2.2833]
[1724074891494,3.85798,2592.1,2591.5,2.2833]
[1724074891638,3.85797,2592.1,2591.5,2.2833]
[1724074891958,6.25782,2592.5,2591.4,3.0]
[1724074891959,7.71643,2591.9,2591.4,3.0]
[1724074892140,3.85817,2591.9,2591.4,3.0]
[1724074892497,7.71644,2591.9,2591.4,3.0]
[1724074892678,0.385797,2592.0,2591.4,3.0]
[1724074892902,3.85834,2591.8,2591.4,3.0]
[1724074893078,3.85779,2592.2,2591.4,3.0]
[1724074893415,3.85751,2592.4,2591.4,3.0]
[1724074893614,3.85766,2592.3,2591.5,3.3113]
[1724074893782,7.71556,2592.2,2591.5,3.3113]
[1724074893983,4.72896512,2592.2,2591.5,2.2833]
[1724074894301,3.85826,2591.9,2591.4,3.0]
[1724074894467,3.85751,2592.4,2591.4,3.0]
[1724074894468,3.85833,2591.8,2591.4,3.0]
[1724074894792,4.244163,2591.8,2591.4,3.0]
[1724074894998,3.85833,2591.8,2591.3,7.28]
[1724074895201,3.85833,2591.8,2591.1,2.2833]
[1724074895404,3.85862,2591.6,2591.0,7.28]
[1724074895698,3.85886,2591.5,2591.0,7.28]
[1724074896501,7.71738,2591.6,2591.0,7.28]
[1724074896823,3.85877,2591.5,2591.1,3.0]
[1724074897016,0.771738,2591.5,2591.1,3.0]
[1724074897327,0.771738,2591.5,2591.0,7.28]
[1724074897981,3.85893,2591.4,2591.0,7.28]
[1724074898180,3.85893,2591.4,2590.8,3.0]
[1724074899175,4.871855,2591.4,2590.8,3.0]
[1724074899369,4.871855,2591.4,2590.7,7.28]
[1724074899370,3.8593,2591.2,2590.7,7.28]
[1724074900438,3.85907,2591.3,2590.7,7.28]
[1724074901147,2.4117,2591.6,2590.7,7.28]
[1724074901442,3.85856,2591.7,2590.8,3.96]
[1724074901731,7.71715,2591.7,2590.8,3.96]
[1724074901884,3.85856,2591.7,2590.8,3.96]
[1724074902086,2.3397,2592.0,2590.9,1.124]
[1724074902316,3.85877,2591.5,2590.9,1.124]
[1724074902701,3.85867,2591.6,2590.9,1.124]
[1724074902919,3.85887,2591.5,2590.9,1.124]
[1724074903229,3.85832,2591.8,2590.9,2.4782]
[1724074903430,3.85862,2591.6,2590.9,2.4782]
[1724074903745,3.85832,2591.8,2590.9,2.4782]
[1724074903953,2.4962,2592.0,2591.0,0.54782]
[1724074904126,6.35429,2592.0,2591.0,7.40723]
[1724074904292,3.85854,2591.7,2591.0,3.54782]
[1724074904490,3.85854,2591.7,2591.0,3.0]
[1724074904735,3.85863,2591.6,2590.9,2.4782]
[1724074904917,3.85863,2591.6,2590.9,2.3282]
[1724074905119,3.85841,2591.8,2590.9,2.3282]
[1724074905436,3.85841,2591.8,2591.0,0.53282]
[1724074905739,3.85841,2591.8,2591.0,3.53282]
[1724074905953,10.21249,2592.0,2591.0,3.53282]
[1724074906240,3.85827,2591.9,2591.1,0.972066]
[1724074906708,3.85835,2591.8,2591.1,0.972066]
[1724074906904,3.8585,2591.7,2591.1,0.972066]
[1724074907217,3.8585,2591.7,2591.0,3.53282]
[1724074907218,3.85868,2591.6,2591.0,3.0]
[1724074907417,3.85868,2591.6,2590.9,2.3282]
[1724074907746,3.85878,2591.5,2590.9,2.3282]
[1724074907893,4.24444,2591.7,2590.9,2.3282]
[1724074908098,3.8581,2592.0,2591.2,2.3873]
[1724074908401,3.85822,2591.9,2591.2,5.3873]
[1724074908635,3.85822,2591.9,2591.2,3.32803]
[1724074908839,3.8581,2592.0,2591.2,3.32803]
[1724074909042,3.85788,2592.1,2591.3,3.0]
[1724074909337,3.85791,2592.1,2591.4,0.632803]
[1724074909710,3.85754,2592.4,2591.4,0.632803]
[1724074910046,3.85754,2592.4,2591.5,0.3632803]
[1724074910205,3.85754,2592.4,2591.6,2.3197]
[1724074910206,3.85745,2592.4,2591.6,2.3197]
[1724074910656,0.52528,2592.5,2591.7,0.07715385]
[1724074910790,3.85722,2592.6,2591.8,0.07715378]
[1724074911444,3.85728,2592.5,2591.7,3.96188842]
[1724074911640,3.85728,2592.5,2591.8,1.01401984]
[1724074912508,4.473844,2592.7,2591.7,3.0]
[1724074912509,3.85757,2592.4,2591.7,3.0]
[1724074912689,3.85764,2592.3,2591.6,5.3197]
[1724074913319,3.85773,2592.2,2591.6,5.3197]
[1724074913545,3.85782,2592.2,2591.6,5.3197]
[1724074913694,3.85782,2592.2,2591.6,2.3197]
[1724074914049,3.85814,2592.0,2591.3,5.3884]
[1724074914347,3.85788,2592.1,2591.3,2.3884]
[1724074914545,3.85788,2592.1,2591.3,3.35524]
[1724074915257,7.71527,2592.3,2591.4,2.4933]
[1724074915395,3.8579,2592.1,2591.4,5.4933]
[1724074915756,3.8579,2592.1,2591.4,7.741118]
[1724074915900,3.85824,2591.9,2591.4,5.4933]
[1724074916100,3.85803,2592.0,2591.4,5.4933]
[1724074916506,3.85768,2592.3,2591.4,5.4933]
[1724074916712,3.85794,2592.1,2591.5,0.646014]
[1724074916925,0.385757,2592.4,2591.5,0.646014]
[1724074916926,3.85806,2592.0,2591.5,3.0]
[1724074917131,3.85823,2591.9,2591.5,3.0]
[1724074917348,3.85823,2591.9,2591.1,5.3133]
[1724074917644,3.85823,2591.9,2591.2,1.01928]
[1724074917847,3.85823,2591.9,2591.2,4.01928]
[1724074918147,3.85796,2592.1,2591.2,4.01928]
[1724074918351,3.8581,2592.0,2591.2,4.01928]
[1724074918551,3.8581,2592.0,2591.3,0.633258]
[1724074918904,3.85772,2592.2,2591.3,0.633258]
[1724074919244,3.85772,2592.2,2591.4,2.37]
[1724074919553,3.85772,2592.2,2591.4,5.37]
[1724074920152,3.85793,2592.1,2591.4,5.37]
[1724074920331,3.85793,2592.1,2591.4,2.37]
[1724074920544,3.7097313,2592.7,2591.6,4.02]
[1724074920706,7.71388,2592.8,2591.8,3.85824]
[1724074920905,8.12796221,2592.8,2591.8,3.85824]
[1724074921099,3.70894786,2592.9,2592.0,2.4945]
[1724074921301,3.85692,2592.8,2592.0,2.4945]
[1724074921504,3.85708,2592.7,2592.0,4.157772]
[1724074921764,3.85722,2592.6,2592.1,3.0]
[1724074922103,3.85722,2592.6,2592.0,5.4945]
[1724074922298,3.85689,2592.8,2592.0,5.4945]
[1724074922733,3.85661,2593.0,2592.0,5.4945]
[1724074922936,3.85655,2593.0,2592.1,1.82745]
[1724074923150,3.85638,2593.2,2592.2,2.3329]
[1724074923355,3.85632,2593.2,2592.3,0.416035]
[1724074923558,3.85656,2593.0,2592.3,3.416035]
[1724074924206,3.85632,2593.2,2592.3,3.416035]
[1724074924413,3.8565,2593.1,2592.4,1.3028935]
[1724074925126,3.85657,2593.0,2592.4,1.3028935]
[1724074926043,2.3939,2593.0,2592.3,3.0]
[1724074926238,3.85643,2593.1,2592.3,3.0]
[1724074926442,3.85643,2593.1,2592.4,1.26129]
[1724074926637,7.71294,2593.1,2592.4,1.26129]
[1724074926867,3.85643,2593.1,2592.4,1.26129]
[1724074927068,3.85582,2593.5,2592.5,2.4097]
[1724074927274,6.29399,2593.7,2592.5,13.115829]
[1724074927439,0.629399,2593.6,2592.6,1.8234459]
[1724074927641,0.629399,2593.6,2592.7,2.3521]
[1724074927642,4.485049,2593.6,2592.7,2.3521]
[1724074927842,0.629399,2593.6,2592.7,5.3521]
[1724074928042,3.85559,2593.7,2592.8,1.48038703]
[1724074928244,2.60999725,2594.1,2592.8,1.48038703]
[1724074928245,3.85528,2593.9,2592.9,2.4263191]
[1724074928442,3.85528,2593.9,2592.9,2.3492]
[1724074928677,0.385528,2593.8,2592.9,6.02444646]
[1724074928843,0.385528,2593.8,2593.0,2.57621381]
[1724074929041,0.385528,2593.8,2593.1,3.0]
[1724074929260,3.85497,2594.1,2593.1,3.0]
[1724074929584,3.85505,2594.0,2593.1,3.0]
[1724074929873,7.71021,2594.0,2593.1,3.0]
[1724074930028,3.85527,2593.9,2593.1,4.73107665]
[1724074930229,4.626071,2594.0,2593.1,4.73107665]
[1724074930430,3.85505,2594.0,2593.1,4.73107665]
[1724074930633,7.7097,2594.2,2593.1,4.73107665]
[1724074930831,15.35422,2594.6,2593.4,2.429]
[1724074930832,3.85462,2594.3,2593.4,2.429]
[1724074931029,7.7093,2594.3,2593.5,0.628497]
[1724074931271,3.85462,2594.3,2593.5,3.0]
[1724074931875,3.85462,2594.3,2593.4,5.429]
[1724074932177,3.8551,2594.0,2593.4,5.429]
[1724074932782,3.85537,2593.8,2593.4,5.429]